[Event "*** Titled Tuesday Blitz"]
[Site "Chess.com"]
[Date "2021.03.02"]
[Round "10"]
[White "anon481216"]
[Black "Andrakhanova"]
[Result "1-0"]
[WhiteElo "2494"]
[BlackElo "2292"]
[TimeControl "180+1"]
[EndTime "12:00:20 PST"]
[Termination "anon481216 won by resignation"]

1. d4 {[%clk 0:03:00.9]} 1... d5 {[%clk 0:02:58.9]} 2. c4 {[%clk 0:03:01.2]}
2... e6 {[%clk 0:02:58.3]} 3. Nf3 {[%clk 0:03:01.6]} 3... c6 {[%clk 0:02:58.4]}
4. Qc2 {[%clk 0:03:01.8]} 4... Nf6 {[%clk 0:02:57.8]} 5. Nbd2 {[%clk 0:02:48.4]}
5... Nbd7 {[%clk 0:02:57.6]} 6. g3 {[%clk 0:02:43.7]} 6... Bd6 {[%clk 0:02:57]}
7. Bg2 {[%clk 0:02:41.5]} 7... O-O {[%clk 0:02:56.9]} 8. O-O {[%clk 0:02:42]}
8... Re8 {[%clk 0:02:57.1]} 9. e4 {[%clk 0:02:41.6]} 9... dxe4 {[%clk
0:02:56.7]} 10. Nxe4 {[%clk 0:02:42.1]} 10... Nxe4 {[%clk 0:02:57.6]} 11. Qxe4
{[%clk 0:02:42.3]} 11... e5 {[%clk 0:02:56]} 12. Re1 {[%clk 0:02:29.5]} 12...
Nf6 {[%clk 0:02:51.3]} 13. Qh4 {[%clk 0:02:25.4]} 13... exd4 {[%clk 0:02:48]}
14. Rxe8+ {[%clk 0:02:22.8]} 14... Qxe8 {[%clk 0:02:48.9]} 15. Bg5 {[%clk
0:02:22.5]} 15... Ne4 {[%clk 0:02:30]} 16. Re1 {[%clk 0:02:19.5]} 16... f5
{[%clk 0:02:26.7]} 17. Nxd4 {[%clk 0:02:17]} 17... h6 {[%clk 0:02:25.1]} 18. Bc1
{[%clk 0:02:08.9]} 18... Bb4 {[%clk 0:02:02.1]} 19. Rd1 {[%clk 0:01:47.6]} 19...
Be6 {[%clk 0:01:38.7]} 20. a3 {[%clk 0:01:41.5]} 20... Bc5 {[%clk 0:01:35.9]}
21. b4 {[%clk 0:01:37.2]} 21... Be7 {[%clk 0:01:29.9]} 22. Qf4 {[%clk
0:01:32.4]} 22... Bg5 {[%clk 0:01:26.9]} 23. Qe5 {[%clk 0:01:29.8]} 23... Bf6
{[%clk 0:01:16.2]} 24. Qxe6+ {[%clk 0:01:29.3]} 24... Qxe6 {[%clk 0:01:13.7]}
25. Nxe6 {[%clk 0:01:29.1]} 25... Re8 {[%clk 0:01:11.1]} 26. Nf4 {[%clk
0:01:25]} 26... Nc3 {[%clk 0:01:10.4]} 27. Rf1 {[%clk 0:01:19.8]} 27... g5
{[%clk 0:01:08.9]} 28. Nd3 {[%clk 0:01:09.8]} 28... Re2 {[%clk 0:00:52.3]} 29.
Re1 {[%clk 0:01:06.6]} 29... Rc2 {[%clk 0:00:50]} 30. Bb2 {[%clk 0:00:45.7]}
30... Bd4 {[%clk 0:00:38.2]} 31. Bxc3 {[%clk 0:00:44.7]} 31... Rxc3 {[%clk
0:00:39.1]} 32. Nc5 {[%clk 0:00:42.8]} 32... Rxa3 {[%clk 0:00:35.5]} 33. Rd1
{[%clk 0:00:36.3]} 33... Bxc5 {[%clk 0:00:30.6]} 34. bxc5 {[%clk 0:00:36.3]}
34... Rc3 {[%clk 0:00:31.2]} 35. Rd8+ {[%clk 0:00:35.6]} 35... Kf7 {[%clk
0:00:30.5]} 36. Rd7+ {[%clk 0:00:36.5]} 36... Kf6 {[%clk 0:00:30.3]} 37. Rxb7
{[%clk 0:00:37.4]} 37... Rxc4 {[%clk 0:00:30.7]} 38. Rxa7 {[%clk 0:00:33.4]}
38... Rxc5 {[%clk 0:00:29.1]} 39. h3 {[%clk 0:00:26.2]} 39... Rc1+ {[%clk
0:00:27.7]} 40. Kh2 {[%clk 0:00:24.6]} 40... c5 {[%clk 0:00:28.6]} 41. Ra6+
{[%clk 0:00:24.1]} 41... Kg7 {[%clk 0:00:28.6]} 42. Bd5 {[%clk 0:00:24.2]} 42...
c4 {[%clk 0:00:26.5]} 43. Rc6 {[%clk 0:00:23.9]} 43... c3 {[%clk 0:00:26.9]} 44.
Kg2 {[%clk 0:00:23.7]} 44... h5 {[%clk 0:00:24.4]} 45. h4 {[%clk 0:00:19.9]}
45... gxh4 {[%clk 0:00:23.3]} 46. gxh4 {[%clk 0:00:20.1]} 46... Rd1 {[%clk
0:00:19.1]} 47. Bf3 {[%clk 0:00:19.6]} 47... Rc1 {[%clk 0:00:16]} 48. Bxh5
{[%clk 0:00:18.7]} 48... c2 {[%clk 0:00:15.8]} 49. Bf3 {[%clk 0:00:18.8]} 49...
Kf7 {[%clk 0:00:13]} 50. h5 {[%clk 0:00:19]} 50... Ke7 {[%clk 0:00:12.9]} 51.
Rc3 {[%clk 0:00:17.8]} 51... Kf6 {[%clk 0:00:11.3]} 52. h6 {[%clk 0:00:14.3]}
52... Kg6 {[%clk 0:00:11.5]} 53. Rc6+ {[%clk 0:00:14.4]} 53... Kh7 {[%clk
0:00:11.8]} 54. Be2 {[%clk 0:00:13.2]} 54... Re1 {[%clk 0:00:11.5]} 55. Rxc2
{[%clk 0:00:13]} 55... Kxh6 {[%clk 0:00:12.4]} 56. Kf3 {[%clk 0:00:13.3]} 56...
Kg5 {[%clk 0:00:12.4]} 57. Rc5 {[%clk 0:00:13.4]} 57... Ra1 {[%clk 0:00:11]} 58.
Bd3 {[%clk 0:00:13.3]} 58... Ra3 {[%clk 0:00:10.4]} 59. Rxf5+ {[%clk 0:00:12.4]}
59... Kh6 {[%clk 0:00:11.3]} 60. Rd5 {[%clk 0:00:12.6]} 60... Kg7 {[%clk
0:00:10.7]} 61. Kf4 {[%clk 0:00:12.8]} 61... Ra4+ {[%clk 0:00:10]} 62. Be4
{[%clk 0:00:13.1]} 62... Kf7 {[%clk 0:00:10.2]} 63. f3 {[%clk 0:00:13.6]} 63...
Ra1 {[%clk 0:00:10.1]} 64. Kf5 {[%clk 0:00:13.6]} 64... Re1 {[%clk 0:00:09.4]}
65. f4 {[%clk 0:00:13.7]} 65... Rf1 {[%clk 0:00:09.1]} 66. Ra5 {[%clk
0:00:14.1]} 66... Rc1 {[%clk 0:00:08.1]} 67. Ke5 {[%clk 0:00:14.2]} 67... Rc4
{[%clk 0:00:07.3]} 68. f5 {[%clk 0:00:14.4]} 68... Rc1 {[%clk 0:00:06.6]} 69.
Ra7+ {[%clk 0:00:13.5]} 69... Kf8 {[%clk 0:00:06.4]} 70. Kf6 {[%clk 0:00:13.6]}
70... Ke8 {[%clk 0:00:04.6]} 71. Ra8+ {[%clk 0:00:12.9]} 71... Kd7 {[%clk
0:00:04.7]} 72. Kf7 {[%clk 0:00:13.2]} 72... Re1 {[%clk 0:00:02.6]} 73. Bd5
{[%clk 0:00:13.1]} 73... Rd1 {[%clk 0:00:02.4]} 74. Be6+ {[%clk 0:00:13.5]}
74... Kc7 {[%clk 0:00:02.2]} 75. Rc8+ {[%clk 0:00:13.6]} 75... Kb7 {[%clk
0:00:01.9]} 76. Rc3 {[%clk 0:00:13.7]} 76... Re1 {[%clk 0:00:02]} 77. Ke7 {[%clk
0:00:13.8]} 77... Rf1 {[%clk 0:00:02.2]} 78. f6 {[%clk 0:00:14.3]} 78... Rf2
{[%clk 0:00:02.4]} 79. f7 {[%clk 0:00:14.7]} 1-0

[Event "*** Titled Tuesday Blitz"]
[Site "Chess.com"]
[Date "2021.03.02"]
[Round "10"]
[White "fearless_guy"]
[Black "mishanick"]
[Result "1/2-1/2"]
[WhiteElo "2850"]
[BlackElo "3027"]
[TimeControl "180+1"]
[EndTime "12:00:23 PST"]
[Termination "Game drawn by repetition"]

1. e4 {[%clk 0:02:59.7]} 1... c5 {[%clk 0:02:54.6]} 2. Nc3 {[%clk 0:02:59.9]}
2... d6 {[%clk 0:02:54.8]} 3. d4 {[%clk 0:03:00.3]} 3... cxd4 {[%clk 0:02:55.7]}
4. Qxd4 {[%clk 0:03:01.2]} 4... Nc6 {[%clk 0:02:53.2]} 5. Qe3 {[%clk 0:03:01.5]}
5... g6 {[%clk 0:02:48.6]} 6. Bd2 {[%clk 0:03:01.6]} 6... Bg7 {[%clk 0:02:49]}
7. O-O-O {[%clk 0:03:01.6]} 7... Nf6 {[%clk 0:02:49.1]} 8. f4 {[%clk 0:03:01.9]}
8... Be6 {[%clk 0:02:42.3]} 9. Nf3 {[%clk 0:03:01.5]} 9... Ng4 {[%clk
0:02:36.5]} 10. Qe1 {[%clk 0:02:52.4]} 10... Qb6 {[%clk 0:02:35.4]} 11. h3
{[%clk 0:02:32.9]} 11... Nf6 {[%clk 0:02:33.1]} 12. Ng5 {[%clk 0:02:20.5]} 12...
Rc8 {[%clk 0:02:32.2]} 13. Nxe6 {[%clk 0:02:19.9]} 13... fxe6 {[%clk 0:02:33.1]}
14. Bc4 {[%clk 0:02:16.2]} 14... Nd4 {[%clk 0:02:01]} 15. Bb3 {[%clk 0:01:57.9]}
15... Nd7 {[%clk 0:01:47.7]} 16. Ba4 {[%clk 0:01:46.4]} 16... Nc6 {[%clk
0:01:44.8]} 17. e5 {[%clk 0:01:21.9]} 17... Nc5 {[%clk 0:01:33]} 18. Be3 {[%clk
0:01:20.5]} 18... O-O {[%clk 0:01:21.1]} 19. Kb1 {[%clk 0:00:50.2]} 19... dxe5
{[%clk 0:01:10.9]} 20. fxe5 {[%clk 0:00:29.9]} 20... Nxe5 {[%clk 0:01:02.6]} 21.
Bb3 {[%clk 0:00:27.6]} 21... Qb4 {[%clk 0:00:37]} 22. Rd4 {[%clk 0:00:19.1]}
22... Qa5 {[%clk 0:00:34.8]} 23. Ne4 {[%clk 0:00:14.3]} 23... Qxe1+ {[%clk
0:00:31.4]} 24. Rxe1 {[%clk 0:00:13.9]} 24... Nxb3 {[%clk 0:00:31.3]} 25. axb3
{[%clk 0:00:14.5]} 25... b6 {[%clk 0:00:25.7]} 26. Ng5 {[%clk 0:00:14]} 26...
Nf7 {[%clk 0:00:20.7]} 27. Re4 {[%clk 0:00:08.3]} 27... Nxg5 {[%clk 0:00:17.1]}
28. Bxg5 {[%clk 0:00:09.2]} 28... Rf2 {[%clk 0:00:17.3]} 29. R1e2 {[%clk
0:00:08.1]} 29... Rxe2 {[%clk 0:00:16.7]} 30. Rxe2 {[%clk 0:00:09]} 30... Kf7
{[%clk 0:00:17.3]} 31. c3 {[%clk 0:00:08.8]} 31... e5 {[%clk 0:00:16.9]} 32. Kc2
{[%clk 0:00:09]} 32... Ke6 {[%clk 0:00:16.9]} 33. Kd3 {[%clk 0:00:07.9]} 33...
Bf6 {[%clk 0:00:16.9]} 34. Be3 {[%clk 0:00:08]} 34... Rc6 {[%clk 0:00:15.5]} 35.
b4 {[%clk 0:00:06.6]} 35... a6 {[%clk 0:00:14.9]} 36. Rf2 {[%clk 0:00:04.9]}
36... b5 {[%clk 0:00:15]} 37. Rf1 {[%clk 0:00:04.8]} 37... Kd5 {[%clk
0:00:15.4]} 38. Ra1 {[%clk 0:00:05]} 38... e4+ {[%clk 0:00:15.4]} 39. Kc2 {[%clk
0:00:05.5]} 39... Ke6 {[%clk 0:00:14.4]} 40. Rd1 {[%clk 0:00:06]} 40... Rd6
{[%clk 0:00:14.2]} 41. Ra1 {[%clk 0:00:06.1]} 41... h5 {[%clk 0:00:12.9]} 42. g4
{[%clk 0:00:05.9]} 42... hxg4 {[%clk 0:00:12.4]} 43. hxg4 {[%clk 0:00:06.8]}
43... Be5 {[%clk 0:00:12.6]} 44. Rd1 {[%clk 0:00:06.7]} 44... Rxd1 {[%clk
0:00:09.5]} 45. Kxd1 {[%clk 0:00:07.6]} 45... Kd5 {[%clk 0:00:10.2]} 46. Kc2
{[%clk 0:00:08.1]} 46... Bg3 {[%clk 0:00:10.4]} 47. b3 {[%clk 0:00:08.2]} 47...
Be1 {[%clk 0:00:09.4]} 48. Kb2 {[%clk 0:00:06.9]} 48... e5 {[%clk 0:00:07.9]}
49. Kc2 {[%clk 0:00:07.2]} 49... Ke6 {[%clk 0:00:08.3]} 50. Kb2 {[%clk
0:00:04.6]} 50... Kf6 {[%clk 0:00:07.5]} 51. Kc2 {[%clk 0:00:05.3]} 51... Bg3
{[%clk 0:00:07.5]} 52. Kd2 {[%clk 0:00:05.9]} 52... Bf4 {[%clk 0:00:08]} 53. c4
{[%clk 0:00:05.7]} 53... Kg5 {[%clk 0:00:03.6]} 54. c5 {[%clk 0:00:04.2]} 54...
Kf6 {[%clk 0:00:04.1]} 55. Ke2 {[%clk 0:00:04.5]} 55... Ke6 {[%clk 0:00:04.7]}
56. Kd2 {[%clk 0:00:04.1]} 56... Kd5 {[%clk 0:00:05.2]} 57. Ke2 {[%clk
0:00:03.8]} 57... Bg3 {[%clk 0:00:05.6]} 58. Bf2 {[%clk 0:00:03.6]} 58... Bh2
{[%clk 0:00:05.5]} 59. Be3 {[%clk 0:00:04.3]} 59... Bf4 {[%clk 0:00:05.6]} 60.
Kf2 {[%clk 0:00:04.4]} 60... Kc6 {[%clk 0:00:05.1]} 61. Ke2 {[%clk 0:00:05]}
61... Kd5 {[%clk 0:00:04.1]} 62. Kf2 {[%clk 0:00:05.5]} 62... Bh2 {[%clk
0:00:03.6]} 63. Ke2 {[%clk 0:00:06.1]} 63... Kc6 {[%clk 0:00:02.7]} 64. Kf2
{[%clk 0:00:05.9]} 64... Kb7 {[%clk 0:00:02.8]} 65. Ke2 {[%clk 0:00:06.4]} 65...
Bf4 {[%clk 0:00:02.8]} 66. Kf2 {[%clk 0:00:07]} 66... Kc7 {[%clk 0:00:02]} 67.
Ke2 {[%clk 0:00:07.6]} 67... Kc6 {[%clk 0:00:02.6]} 68. Kf2 {[%clk 0:00:08.4]}
68... Bh2 {[%clk 0:00:03.2]} 69. Ke2 {[%clk 0:00:08.9]} 69... Kd5 {[%clk
0:00:03.9]} 70. Kf2 {[%clk 0:00:09.6]} 70... Bf4 {[%clk 0:00:04.5]} 71. Ke2
{[%clk 0:00:10]} 71... Bg3 {[%clk 0:00:04.8]} 72. Bf2 {[%clk 0:00:10]} 72... Bf4
{[%clk 0:00:03.1]} 73. Be3 {[%clk 0:00:10.5]} 1/2-1/2

[Event "*** Titled Tuesday Blitz"]
[Site "Chess.com"]
[Date "2021.03.02"]
[Round "10"]
[White "Angel_Hranitel_37"]
[Black "zimmm36"]
[Result "0-1"]
[WhiteElo "2489"]
[BlackElo "2365"]
[TimeControl "180+1"]
[EndTime "12:00:43 PST"]
[Termination "zimmm36 won by checkmate"]

1. c4 {[%clk 0:02:57.4]} 1... e5 {[%clk 0:02:57.2]} 2. g3 {[%clk 0:02:56.9]}
2... Nf6 {[%clk 0:02:58.1]} 3. Bg2 {[%clk 0:02:57.8]} 3... d5 {[%clk 0:02:59]}
4. cxd5 {[%clk 0:02:53.9]} 4... Nxd5 {[%clk 0:02:59.9]} 5. Nc3 {[%clk
0:02:54.8]} 5... Be6 {[%clk 0:02:59.3]} 6. d4 {[%clk 0:02:54]} 6... exd4 {[%clk
0:02:54.8]} 7. Qxd4 {[%clk 0:02:54.9]} 7... Nc6 {[%clk 0:02:47.8]} 8. Qa4 {[%clk
0:02:44.9]} 8... Bb4 {[%clk 0:02:28.5]} 9. Bd2 {[%clk 0:02:37.1]} 9... O-O
{[%clk 0:02:23.3]} 10. O-O-O {[%clk 0:02:31.6]} 10... Nb6 {[%clk 0:02:04.1]} 11.
Qc2 {[%clk 0:02:29.7]} 11... Qe7 {[%clk 0:02:00.4]} 12. Be4 {[%clk 0:02:22.9]}
12... g6 {[%clk 0:01:53.5]} 13. Nf3 {[%clk 0:02:18.8]} 13... Nc4 {[%clk
0:01:43.3]} 14. h4 {[%clk 0:02:07.6]} 14... Nxd2 {[%clk 0:01:42.5]} 15. Rxd2
{[%clk 0:02:06.4]} 15... Rfd8 {[%clk 0:01:37.7]} 16. Rxd8+ {[%clk 0:01:59]}
16... Rxd8 {[%clk 0:01:32.3]} 17. h5 {[%clk 0:01:59.9]} 17... Qf6 {[%clk
0:01:27.2]} 18. hxg6 {[%clk 0:01:56.4]} 18... hxg6 {[%clk 0:01:28.1]} 19. Rh6
{[%clk 0:01:49.6]} 19... Bf8 {[%clk 0:01:25.2]} 20. Rh4 {[%clk 0:01:45.7]} 20...
Bg7 {[%clk 0:01:23.5]} 21. Rf4 {[%clk 0:01:38.1]} 21... Qe7 {[%clk 0:01:20]} 22.
Rh4 {[%clk 0:01:36.2]} 22... Nb4 {[%clk 0:01:18.5]} 23. Qa4 {[%clk 0:01:34.6]}
23... Qc5 {[%clk 0:01:11.2]} 24. Qb5 {[%clk 0:00:34.1]} 24... Nxa2+ {[%clk
0:01:06]} 25. Kc2 {[%clk 0:00:34.7]} 25... Nb4+ {[%clk 0:00:43.1]} 26. Kc1
{[%clk 0:00:35.1]} 26... Na2+ {[%clk 0:00:26.6]} 27. Kc2 {[%clk 0:00:35.5]}
27... Qxf2 {[%clk 0:00:26.2]} 28. Qg5 {[%clk 0:00:32.4]} 28... Nb4+ {[%clk
0:00:20.4]} 29. Kb1 {[%clk 0:00:23.2]} 29... Qf1+ {[%clk 0:00:19.4]} 30. Qc1
{[%clk 0:00:24.1]} 30... Ba2+ {[%clk 0:00:18.7]} 31. Nxa2 {[%clk 0:00:22.8]}
31... Rd1 {[%clk 0:00:18.2]} 32. Nd2 {[%clk 0:00:19.3]} 32... Rxc1+ {[%clk
0:00:18]} 33. Nxc1 {[%clk 0:00:20.2]} 33... Qf6 {[%clk 0:00:16.6]} 34. Nc4
{[%clk 0:00:16]} 34... b5 {[%clk 0:00:11.7]} 35. Rf4 {[%clk 0:00:14.7]} 35...
Qd4 {[%clk 0:00:11]} 36. Bd3 {[%clk 0:00:15.1]} 36... Qd7 {[%clk 0:00:08.5]} 37.
Ne3 {[%clk 0:00:13.4]} 37... Nxd3 {[%clk 0:00:08.4]} 38. Nxd3 {[%clk 0:00:14.3]}
38... Qd6 {[%clk 0:00:08.3]} 39. Re4 {[%clk 0:00:14.4]} 39... c5 {[%clk
0:00:08]} 40. Ng4 {[%clk 0:00:13.9]} 40... c4 {[%clk 0:00:07.7]} 41. Nf4 {[%clk
0:00:12.5]} 41... Qd1+ {[%clk 0:00:07]} 42. Ka2 {[%clk 0:00:13.3]} 42... Kh7
{[%clk 0:00:06.5]} 43. Re3 {[%clk 0:00:10.7]} 43... b4 {[%clk 0:00:05.3]} 44.
Nh3 {[%clk 0:00:09]} 44... b3+ {[%clk 0:00:05.3]} 45. Ka3 {[%clk 0:00:09.7]}
45... Qd6+ {[%clk 0:00:04.4]} 46. Ka4 {[%clk 0:00:09]} 46... Qa6+ {[%clk
0:00:03.5]} 47. Kb4 {[%clk 0:00:09.6]} 47... Bf8+ {[%clk 0:00:03.5]} 48. Kc3
{[%clk 0:00:09.3]} 48... Qa5+ {[%clk 0:00:03.7]} 49. Kxc4 {[%clk 0:00:09.7]}
49... Qb4+ {[%clk 0:00:03.6]} 50. Kd3 {[%clk 0:00:10.2]} 50... Qxg4 {[%clk
0:00:04.5]} 51. Nf2 {[%clk 0:00:08.4]} 51... Qd7+ {[%clk 0:00:04.1]} 52. Ke4
{[%clk 0:00:08.6]} 52... Qe6+ {[%clk 0:00:03.8]} 53. Kf3 {[%clk 0:00:09.5]}
53... Qf6+ {[%clk 0:00:04]} 54. Kg2 {[%clk 0:00:10.1]} 54... Qxb2 {[%clk
0:00:04.9]} 55. Rf3 {[%clk 0:00:10.8]} 55... Qg7 {[%clk 0:00:04.9]} 56. Nd3
{[%clk 0:00:10]} 56... f5 {[%clk 0:00:05.8]} 57. Rf1 {[%clk 0:00:10.9]} 57... b2
{[%clk 0:00:06.1]} 58. Rb1 {[%clk 0:00:11.5]} 58... a5 {[%clk 0:00:06.5]} 59.
Rxb2 {[%clk 0:00:12]} 59... a4 {[%clk 0:00:07.4]} 60. Rb1 {[%clk 0:00:10.3]}
60... a3 {[%clk 0:00:08.3]} 61. Rh1+ {[%clk 0:00:11.2]} 61... Kg8 {[%clk
0:00:07.8]} 62. Nf4 {[%clk 0:00:11.9]} 62... a2 {[%clk 0:00:07.9]} 63. Ne6
{[%clk 0:00:12]} 63... a1=Q {[%clk 0:00:08]} 64. Nxg7 {[%clk 0:00:12.3]} 64...
Qxg7 {[%clk 0:00:06.7]} 65. Rf1 {[%clk 0:00:13]} 65... Qe7 {[%clk 0:00:07.6]}
66. Kf2 {[%clk 0:00:12.8]} 66... Kf7 {[%clk 0:00:08.5]} 67. Kg2 {[%clk
0:00:12.9]} 67... Kf6 {[%clk 0:00:09.4]} 68. Rf3 {[%clk 0:00:13.8]} 68... Qe4
{[%clk 0:00:09.1]} 69. Kf2 {[%clk 0:00:14.7]} 69... Bd6 {[%clk 0:00:09.8]} 70.
g4 {[%clk 0:00:14.5]} 70... Qxg4 {[%clk 0:00:09.2]} 71. Rd3 {[%clk 0:00:15.4]}
71... Qe4 {[%clk 0:00:10.1]} 72. Rxd6+ {[%clk 0:00:14.7]} 72... Kg7 {[%clk
0:00:10.3]} 73. Rd3 {[%clk 0:00:15.1]} 73... Kh6 {[%clk 0:00:10.1]} 74. Rf3
{[%clk 0:00:15.7]} 74... Kg5 {[%clk 0:00:08.9]} 75. Rg3+ {[%clk 0:00:16]} 75...
Kf6 {[%clk 0:00:09.1]} 76. Rf3 {[%clk 0:00:16.5]} 76... g5 {[%clk 0:00:09]} 77.
Re3 {[%clk 0:00:16.8]} 77... g4 {[%clk 0:00:09]} 78. Rxe4 {[%clk 0:00:17]} 78...
fxe4 {[%clk 0:00:09.9]} 79. Ke3 {[%clk 0:00:17.4]} 79... Ke5 {[%clk 0:00:09.5]}
80. Kf2 {[%clk 0:00:17.8]} 80... Kf4 {[%clk 0:00:09.2]} 81. e3+ {[%clk
0:00:18.3]} 81... Kf5 {[%clk 0:00:09.4]} 82. Kg3 {[%clk 0:00:18.6]} 82... Kg5
{[%clk 0:00:09.5]} 83. Kg2 {[%clk 0:00:19.4]} 83... Kh4 {[%clk 0:00:10]} 84. Kg1
{[%clk 0:00:19]} 84... g3 {[%clk 0:00:10.9]} 85. Kg2 {[%clk 0:00:19.9]} 85...
Kg4 {[%clk 0:00:11.8]} 86. Kf1 {[%clk 0:00:20.4]} 86... Kf3 {[%clk 0:00:10.8]}
87. Kg1 {[%clk 0:00:21.3]} 87... Kxe3 {[%clk 0:00:11.7]} 88. Kg2 {[%clk
0:00:22.2]} 88... Kd2 {[%clk 0:00:11.6]} 89. Kxg3 {[%clk 0:00:23.1]} 89... e3
{[%clk 0:00:12.5]} 90. Kf3 {[%clk 0:00:23]} 90... e2 {[%clk 0:00:13.4]} 91. Kg2
{[%clk 0:00:23.9]} 91... e1=Q {[%clk 0:00:14.3]} 92. Kh2 {[%clk 0:00:24.5]}
92... Qe2+ {[%clk 0:00:13.9]} 93. Kh3 {[%clk 0:00:24.6]} 93... Ke3 {[%clk
0:00:14.8]} 94. Kg3 {[%clk 0:00:25.5]} 94... Qf2+ {[%clk 0:00:14.1]} 95. Kh3
{[%clk 0:00:26]} 95... Qg1 {[%clk 0:00:13.7]} 96. Kh4 {[%clk 0:00:26.5]} 96...
Kf4 {[%clk 0:00:14.6]} 97. Kh5 {[%clk 0:00:27.4]} 97... Qg5# {[%clk 0:00:13.6]}
0-1